{"text_format":"1","workbook":"xlsx","n_sheets":3,"sheets":["Директ","Adwords","Замены"],"not_rendered":{"charts":0,"images":0,"macros":1,"external_links":0,"defined_names":0,"comments":2,"pivot_tables":0},"unopened":[],"bounds":{"document_bytes":16777216,"sheet_cells":100000,"rows_first":2000,"rows_last":500,"rows_between":2000,"halvings":0,"cell_chars":16384,"cell_head_chars":4096},"cells_cut":0,"cells_raw":0,"read":"whole","date_system":"1900"}

{"sheet":"Директ","index":0,"n_rows":13,"n_cols":39,"rows_kept":13,"cut":false,"hidden":false,"merged":[]}
["Номер группы","Ключ","Название группы","Фраза","Заголовок","ДЛ ЗАГ.","Текст обявления","ДЛ текст.","Ссылка","Отображаемая-ссылка","Дл ОС","Ставка","Ставка на тематич. пл.","БС1\nтекст","БС1\nссылка","БС2\nтекст","БС2\nссылка","БС3\nтекст","БС3\nссылка","БС4\nтекст","БС4\nссылка","Пр.ВСЕХ БС","БС\nдлина\nmax 66","Заголовки быстрых ссылок","Адреса быстрых ссылок","Уточ.1","ДЛ 1У","Уточ.2","ДЛ 2У","Уточ.3","ДЛ 3У","Уточ.4","ДЛ 4У","Уточнения","Дл уточнений",null,null,null,"\"+;:,.%#'\\|/№$^&*()_+!@#~\"”“'"]
[1,"ювелирный магазин серебро",{"$f":"REPLACE(LOWER(repl(B2,AM$1)),1,1,LEFT(PROPER(repl(B2,AM$1))))","v":"Ювелирный магазин серебро"},{"$f":"CONCATENATE(\"\"\"\",(REPLACE(LOWER(repl(C2,AN$1)),1,1,LEFT(PROPER(repl(C2,AN$1))))),\"\"\"\")","v":"\"Ювелирный магазин серебро\""},{"$f":"CONCATENATE(\"#\",C2,\"#\",\"!\")","v":"#Ювелирный магазин серебро#!"},{"$f":"LEN(E2)-2","v":26},"Огромный розничный магазин в центре Москвы! Доставка! Примерка!",{"$f":"LEN(G2)","v":63},"http://www.site.ru/jewellary/filter/material:silver-case/",{"$f":"SUBSTITUTE((repl(B2,AM$1)),\" \",\"-\")","v":"ювелирный-магазин-серебро"},{"$f":"LEN(J2)","v":25},0.5,0.5,"Распродажа",{"$f":"IF(AND(ISERR(FIND({\"filter\"},I2))),CONCATENATE(I2,\"filter/reference:sale/\"),CONCATENATE(I2,\"reference:sale/\"))","v":"http://www.site.ru/jewellary/filter/material:silver-case/reference:sale/"},"Новинки",{"$f":"IF(AND(ISERR(FIND({\"filter\"},I2))),CONCATENATE(I2,\"filter/reference:new/\"),CONCATENATE(I2,\"reference:new/\"))","v":"http://www.site.ru/jewellary/filter/material:silver-case/reference:new/"},"Магазины в Москве","http://www.site.ru/shop/city/moscow/","Недорогие украшения",{"$f":"IF(AND(ISERR(FIND({\"filter\"},I2))),CONCATENATE(I2,\"filter/reference:inexpensive/\"),CONCATENATE(I2,\"reference:inexpensive/\"))","v":"http://www.site.ru/jewellary/filter/material:silver-case/reference:inexpensive/"},{"$f":"IF(SUMPRODUCT((O2:U2=O2)+(O2:U2=Q2)+(O2:U2=S2)+(O2:U2=U2))>4,\"совпадают\",\"не совпадают\")","v":"не совпадают"},{"$f":"LEN(N2&P2&R2&T2)","v":53},{"$f":"IF(N2<>\"\",N2,\"\")&IF(P2<>\"\",\"||\"&P2,\"\")&IF(R2<>\"\",\"||\"&R2,\"\")&IF(T2<>\"\",\"||\"&T2,\"\")","v":"Распродажа||Новинки||Магазины в Москве||Недорогие украшения"},"http://www.site.ru/jewellary/filter/material:silver-case/reference:sale/||http://www.site.ru/jewellary/filter/material:silver-case/reference:new/||http://www.site.ru/shop/city/moscow/||http://www.site.ru/jewellary/filter/material:silver-case/reference:inexpensive/","Официальная гарантия",{"$f":"LEN(Таблица1[[#This Row],[Уточ.1]])","v":20},"Оригинальные бренды",{"$f":"LEN(Таблица1[[#This Row],[Уточ.2]])","v":19},"Работаем более 16 лет",{"$f":"LEN(Таблица1[[#This Row],[Уточ.3]])","v":21},"Скидки",{"$f":"LEN(Таблица1[[#This Row],[Уточ.4]])","v":6},{"$f":"IF(Z2<>\"\",Z2,\"\")&IF(AB2<>\"\",\"||\"&AB2,\"\")&IF(AD2<>\"\",\"||\"&AD2,\"\")&IF(AF2<>\"\",\"||\"&AF2,\"\")","v":"Официальная гарантия||Оригинальные бренды||Работаем более 16 лет||Скидки"},{"$f":"LEN(Z2&AB2&AD2&AF2)","v":66}]
[1,"магазин серебряных украшений","Магазин серебряных украшений","\"Магазин серебряных украшений\"",{"$f":"CONCATENATE(\"#\",C3,\"#\",\"!\")","v":"#Магазин серебряных украшений#!"},29,"Огромный розничный магазин в центре Москвы! Доставка! Примерка!",{"$f":"LEN(G3)","v":63},"http://www.site.ru/jewellary/filter/material:silver-case/",{"$f":"SUBSTITUTE((repl(B3,AM$1)),\" \",\"-\")","v":"магазин-серебряных-украшений"},{"$f":"LEN(J3)","v":28},0.5,0.5,"Распродажа",{"$f":"IF(AND(ISERR(FIND({\"filter\"},I3))),CONCATENATE(I3,\"filter/reference:sale/\"),CONCATENATE(I3,\"reference:sale/\"))","v":"http://www.site.ru/jewellary/filter/material:silver-case/reference:sale/"},"Новинки",{"$f":"IF(AND(ISERR(FIND({\"filter\"},I3))),CONCATENATE(I3,\"filter/reference:new/\"),CONCATENATE(I3,\"reference:new/\"))","v":"http://www.site.ru/jewellary/filter/material:silver-case/reference:new/"},"Магазины в Москве","http://www.site.ru/shop/city/moscow/","Недорогие украшения",{"$f":"IF(AND(ISERR(FIND({\"filter\"},I3))),CONCATENATE(I3,\"filter/reference:inexpensive/\"),CONCATENATE(I3,\"reference:inexpensive/\"))","v":"http://www.site.ru/jewellary/filter/material:silver-case/reference:inexpensive/"},{"$f":"IF(SUMPRODUCT((O3:U3=O3)+(O3:U3=Q3)+(O3:U3=S3)+(O3:U3=U3))>4,\"совпадают\",\"не совпадают\")","v":"не совпадают"},{"$f":"LEN(N3&P3&R3&T3)","v":53},{"$f":"IF(N3<>\"\",N3,\"\")&IF(P3<>\"\",\"||\"&P3,\"\")&IF(R3<>\"\",\"||\"&R3,\"\")&IF(T3<>\"\",\"||\"&T3,\"\")","v":"Распродажа||Новинки||Магазины в Москве||Недорогие украшения"},{"$f":"IF(O3<>\"\",O3,\"\")&IF(Q3<>\"\",\"||\"&Q3,\"\")&IF(S3<>\"\",\"||\"&S3,\"\")&IF(U3<>\"\",\"||\"&U3,\"\")","v":"http://www.site.ru/jewellary/filter/material:silver-case/reference:sale/||http://www.site.ru/jewellary/filter/material:silver-case/reference:new/||http://www.site.ru/shop/city/moscow/||http://www.site.ru/jewellary/filter/material:silver-case/reference:inexpensive/"},"Официальная гарантия",{"$f":"LEN(Таблица1[[#This Row],[Уточ.1]])","v":20},"Оригинальные бренды",{"$f":"LEN(Таблица1[[#This Row],[Уточ.2]])","v":19},"Работаем более 16 лет",{"$f":"LEN(Таблица1[[#This Row],[Уточ.3]])","v":21},"Скидки",{"$f":"LEN(Таблица1[[#This Row],[Уточ.4]])","v":6},{"$f":"IF(Z3<>\"\",Z3,\"\")&IF(AB3<>\"\",\"||\"&AB3,\"\")&IF(AD3<>\"\",\"||\"&AD3,\"\")&IF(AF3<>\"\",\"||\"&AF3,\"\")","v":"Официальная гарантия||Оригинальные бренды||Работаем более 16 лет||Скидки"},{"$f":"LEN(Z3&AB3&AD3&AF3)","v":66}]
[]
[]
[]
[]
[]
[]
[]
[]
[]
[null,"Москва"]

{"sheet":"Adwords","index":1,"n_rows":81,"n_cols":21,"rows_kept":81,"cut":false,"hidden":false,"merged":[]}
["Ad group","Headline 1","ДЛ H1 MAX 30","Headline 2","ДЛH2 MAX 30","Description","Path 1","Дp1max 15","Path 2","Дp12","Final URL","1","Campaign","Ad group4","Keyword",null,"[","]",null,"\"",";:,.%#'\\|/№$^&*()_+!@#~\"”“'"]
[{"$f":"REPLACE(LOWER((ТРАНСЛИТ(Таблица1[[#This Row],[Ключ]]))),1,1,LEFT(PROPER((ТРАНСЛИТ(Таблица1[[#This Row],[Ключ]])))))","v":"Yuvelirnyy magazin serebro"},{"$f":"CONCATENATE((repl(Таблица1[[#This Row],[Фраза]],T$1)),\".\")","v":"Ювелирный магазин серебро."},{"$f":"LEN(B2)","v":26},null,{"$f":"LEN(D2)","v":0},{"$f":"Таблица1[[#This Row],[Текст обявления]]","v":"Огромный розничный магазин в центре Москвы! Доставка! Примерка!"},{"$f":"SUBSTITUTE((repl(Таблица1[[#This Row],[Ключ]],Директ!AM$1)),\" \",\"-\")","v":"ювелирный-магазин-серебро"},{"$f":"LEN(G2)","v":25},null,{"$f":"LEN(I2)","v":0},null,null,45,{"$f":"A2","v":"Yuvelirnyy magazin serebro"},{"$f":"CONCATENATE(\"[\",(repl(Таблица1[[#This Row],[Фраза]],Adwords!U$1)),\"]\")","v":"[Ювелирный магазин серебро]"}]
[{"$f":"REPLACE(LOWER((ТРАНСЛИТ(Таблица1[[#This Row],[Ключ]]))),1,1,LEFT(PROPER((ТРАНСЛИТ(Таблица1[[#This Row],[Ключ]])))))","v":"Magazin serebryanykh ukrasheniy"},{"$f":"CONCATENATE((repl(Таблица1[[#This Row],[Фраза]],T$1)),\".\")","v":"Магазин серебряных украшений."},{"$f":"LEN(B3)","v":29},null,{"$f":"LEN(D3)","v":0},{"$f":"Таблица1[[#This Row],[Текст обявления]]","v":"Огромный розничный магазин в центре Москвы! Доставка! Примерка!"},{"$f":"SUBSTITUTE((repl(Таблица1[[#This Row],[Ключ]],Директ!AM$1)),\" \",\"-\")","v":"магазин-серебряных-украшений"},{"$f":"LEN(G3)","v":28},null,{"$f":"LEN(I3)","v":0},null,null,null,{"$f":"A3","v":"Magazin serebryanykh ukrasheniy"},{"$f":"CONCATENATE(\"[\",(repl(Таблица1[[#This Row],[Фраза]],Adwords!U$1)),\"]\")","v":"[Магазин серебряных украшений]"}]
[{"$f":"REPLACE(LOWER((ТРАНСЛИТ(Таблица1[[#This Row],[Ключ]]))),1,1,LEFT(PROPER((ТРАНСЛИТ(Таблица1[[#This Row],[Ключ]])))))","v":{"$error":"#VALUE!"}},{"$f":"CONCATENATE((repl(Таблица1[[#This Row],[Фраза]],T$1)),\".\")","v":{"$error":"#VALUE!"}},null,null,null,null,null,null,null,null,null,null,null,null,{"$f":"CONCATENATE(\"[\",(repl(Таблица1[[#This Row],[Фраза]],Adwords!U$1)),\"]\")","v":{"$error":"#VALUE!"}}]
[{"$f":"REPLACE(LOWER((ТРАНСЛИТ(Таблица1[[#This Row],[Ключ]]))),1,1,LEFT(PROPER((ТРАНСЛИТ(Таблица1[[#This Row],[Ключ]])))))","v":{"$error":"#VALUE!"}},{"$f":"CONCATENATE((repl(Таблица1[[#This Row],[Фраза]],T$1)),\".\")","v":{"$error":"#VALUE!"}},null,null,null,null,null,null,null,null,null,null,null,null,{"$f":"CONCATENATE(\"[\",(repl(Таблица1[[#This Row],[Фраза]],Adwords!U$1)),\"]\")","v":{"$error":"#VALUE!"}}]
[{"$f":"REPLACE(LOWER((ТРАНСЛИТ(Таблица1[[#This Row],[Ключ]]))),1,1,LEFT(PROPER((ТРАНСЛИТ(Таблица1[[#This Row],[Ключ]])))))","v":{"$error":"#VALUE!"}},{"$f":"CONCATENATE((repl(Таблица1[[#This Row],[Фраза]],T$1)),\".\")","v":{"$error":"#VALUE!"}},null,null,null,null,null,null,null,null,null,null,null,null,{"$f":"CONCATENATE(\"[\",(repl(Таблица1[[#This Row],[Фраза]],Adwords!U$1)),\"]\")","v":{"$error":"#VALUE!"}}]
[{"$f":"REPLACE(LOWER((ТРАНСЛИТ(Таблица1[[#This Row],[Ключ]]))),1,1,LEFT(PROPER((ТРАНСЛИТ(Таблица1[[#This Row],[Ключ]])))))","v":{"$error":"#VALUE!"}},{"$f":"CONCATENATE((repl(Таблица1[[#This Row],[Фраза]],T$1)),\".\")","v":{"$error":"#VALUE!"}},null,null,null,null,null,null,null,null,null,null,null,null,{"$f":"CONCATENATE(\"[\",(repl(Таблица1[[#This Row],[Фраза]],Adwords!U$1)),\"]\")","v":{"$error":"#VALUE!"}}]
[{"$f":"REPLACE(LOWER((ТРАНСЛИТ(Таблица1[[#This Row],[Ключ]]))),1,1,LEFT(PROPER((ТРАНСЛИТ(Таблица1[[#This Row],[Ключ]])))))","v":{"$error":"#VALUE!"}},{"$f":"CONCATENATE((repl(Таблица1[[#This Row],[Фраза]],T$1)),\".\")","v":{"$error":"#VALUE!"}},null,null,null,null,null,null,null,null,null,null,null,null,{"$f":"CONCATENATE(\"[\",(repl(Таблица1[[#This Row],[Фраза]],Adwords!U$1)),\"]\")","v":{"$error":"#VALUE!"}}]
[{"$f":"REPLACE(LOWER((ТРАНСЛИТ(Таблица1[[#This Row],[Ключ]]))),1,1,LEFT(PROPER((ТРАНСЛИТ(Таблица1[[#This Row],[Ключ]])))))","v":{"$error":"#VALUE!"}},{"$f":"CONCATENATE((repl(Таблица1[[#This Row],[Фраза]],T$1)),\".\")","v":{"$error":"#VALUE!"}},null,null,null,null,null,null,null,null,null,null,null,null,{"$f":"CONCATENATE(\"[\",(repl(Таблица1[[#This Row],[Фраза]],Adwords!U$1)),\"]\")","v":{"$error":"#VALUE!"}}]
[{"$f":"REPLACE(LOWER((ТРАНСЛИТ(Таблица1[[#This Row],[Ключ]]))),1,1,LEFT(PROPER((ТРАНСЛИТ(Таблица1[[#This Row],[Ключ]])))))","v":{"$error":"#VALUE!"}},{"$f":"CONCATENATE((repl(Таблица1[[#This Row],[Фраза]],T$1)),\".\")","v":{"$error":"#VALUE!"}},null,null,null,null,null,null,null,null,null,null,null,null,{"$f":"CONCATENATE(\"[\",(repl(Таблица1[[#This Row],[Фраза]],Adwords!U$1)),\"]\")","v":{"$error":"#VALUE!"}}]
[{"$f":"REPLACE(LOWER((ТРАНСЛИТ(Таблица1[[#This Row],[Ключ]]))),1,1,LEFT(PROPER((ТРАНСЛИТ(Таблица1[[#This Row],[Ключ]])))))","v":{"$error":"#VALUE!"}},{"$f":"CONCATENATE((repl(Таблица1[[#This Row],[Фраза]],T$1)),\".\")","v":{"$error":"#VALUE!"}},null,null,null,null,null,null,null,null,null,null,null,null,{"$f":"CONCATENATE(\"[\",(repl(Таблица1[[#This Row],[Фраза]],Adwords!U$1)),\"]\")","v":{"$error":"#VALUE!"}}]
[{"$f":"REPLACE(LOWER((ТРАНСЛИТ(Таблица1[[#This Row],[Ключ]]))),1,1,LEFT(PROPER((ТРАНСЛИТ(Таблица1[[#This Row],[Ключ]])))))","v":{"$error":"#VALUE!"}},{"$f":"CONCATENATE((repl(Таблица1[[#This Row],[Фраза]],T$1)),\".\")","v":{"$error":"#VALUE!"}},null,null,null,null,null,null,null,null,null,null,null,null,{"$f":"CONCATENATE(\"[\",(repl(Таблица1[[#This Row],[Фраза]],Adwords!U$1)),\"]\")","v":{"$error":"#VALUE!"}}]
[{"$f":"REPLACE(LOWER((ТРАНСЛИТ(Таблица1[[#This Row],[Ключ]]))),1,1,LEFT(PROPER((ТРАНСЛИТ(Таблица1[[#This Row],[Ключ]])))))","v":{"$error":"#VALUE!"}},{"$f":"CONCATENATE((repl(Таблица1[[#This Row],[Фраза]],T$1)),\".\")","v":{"$error":"#VALUE!"}},null,null,null,null,null,null,null,null,null,null,null,null,{"$f":"CONCATENATE(\"[\",(repl(Таблица1[[#This Row],[Фраза]],Adwords!U$1)),\"]\")","v":{"$error":"#VALUE!"}}]
[{"$f":"REPLACE(LOWER((ТРАНСЛИТ(Таблица1[[#This Row],[Ключ]]))),1,1,LEFT(PROPER((ТРАНСЛИТ(Таблица1[[#This Row],[Ключ]])))))","v":{"$error":"#VALUE!"}},{"$f":"CONCATENATE((repl(Таблица1[[#This Row],[Фраза]],T$1)),\".\")","v":{"$error":"#VALUE!"}},null,null,null,null,null,null,null,null,null,null,null,null,{"$f":"CONCATENATE(\"[\",(repl(Таблица1[[#This Row],[Фраза]],Adwords!U$1)),\"]\")","v":{"$error":"#VALUE!"}}]
[{"$f":"REPLACE(LOWER((ТРАНСЛИТ(Таблица1[[#This Row],[Ключ]]))),1,1,LEFT(PROPER((ТРАНСЛИТ(Таблица1[[#This Row],[Ключ]])))))","v":{"$error":"#VALUE!"}},{"$f":"CONCATENATE((repl(Таблица1[[#This Row],[Фраза]],T$1)),\".\")","v":{"$error":"#VALUE!"}},null,null,null,null,null,null,null,null,null,null,null,null,{"$f":"CONCATENATE(\"[\",(repl(Таблица1[[#This Row],[Фраза]],Adwords!U$1)),\"]\")","v":{"$error":"#VALUE!"}}]
[{"$f":"REPLACE(LOWER((ТРАНСЛИТ(Таблица1[[#This Row],[Ключ]]))),1,1,LEFT(PROPER((ТРАНСЛИТ(Таблица1[[#This Row],[Ключ]])))))","v":{"$error":"#VALUE!"}},{"$f":"CONCATENATE((repl(Таблица1[[#This Row],[Фраза]],T$1)),\".\")","v":{"$error":"#VALUE!"}},null,null,null,null,null,null,null,null,null,null,null,null,{"$f":"CONCATENATE(\"[\",(repl(Таблица1[[#This Row],[Фраза]],Adwords!U$1)),\"]\")","v":{"$error":"#VALUE!"}}]
[{"$f":"REPLACE(LOWER((ТРАНСЛИТ(Таблица1[[#This Row],[Ключ]]))),1,1,LEFT(PROPER((ТРАНСЛИТ(Таблица1[[#This Row],[Ключ]])))))","v":{"$error":"#VALUE!"}},{"$f":"CONCATENATE((repl(Таблица1[[#This Row],[Фраза]],T$1)),\".\")","v":{"$error":"#VALUE!"}},null,null,null,null,null,null,null,null,null,null,null,null,{"$f":"CONCATENATE(\"[\",(repl(Таблица1[[#This Row],[Фраза]],Adwords!U$1)),\"]\")","v":{"$error":"#VALUE!"}}]
[{"$f":"REPLACE(LOWER((ТРАНСЛИТ(Таблица1[[#This Row],[Ключ]]))),1,1,LEFT(PROPER((ТРАНСЛИТ(Таблица1[[#This Row],[Ключ]])))))","v":{"$error":"#VALUE!"}},{"$f":"CONCATENATE((repl(Таблица1[[#This Row],[Фраза]],T$1)),\".\")","v":{"$error":"#VALUE!"}},null,null,null,null,null,null,null,null,null,null,null,null,{"$f":"CONCATENATE(\"[\",(repl(Таблица1[[#This Row],[Фраза]],Adwords!U$1)),\"]\")","v":{"$error":"#VALUE!"}}]
[{"$f":"REPLACE(LOWER((ТРАНСЛИТ(Таблица1[[#This Row],[Ключ]]))),1,1,LEFT(PROPER((ТРАНСЛИТ(Таблица1[[#This Row],[Ключ]])))))","v":{"$error":"#VALUE!"}},{"$f":"CONCATENATE((repl(Таблица1[[#This Row],[Фраза]],T$1)),\".\")","v":{"$error":"#VALUE!"}},null,null,null,null,null,null,null,null,null,null,null,null,{"$f":"CONCATENATE(\"[\",(repl(Таблица1[[#This Row],[Фраза]],Adwords!U$1)),\"]\")","v":{"$error":"#VALUE!"}}]
[{"$f":"REPLACE(LOWER((ТРАНСЛИТ(Таблица1[[#This Row],[Ключ]]))),1,1,LEFT(PROPER((ТРАНСЛИТ(Таблица1[[#This Row],[Ключ]])))))","v":{"$error":"#VALUE!"}},{"$f":"CONCATENATE((repl(Таблица1[[#This Row],[Фраза]],T$1)),\".\")","v":{"$error":"#VALUE!"}},null,null,null,null,null,null,null,null,null,null,null,null,{"$f":"CONCATENATE(\"[\",(repl(Таблица1[[#This Row],[Фраза]],Adwords!U$1)),\"]\")","v":{"$error":"#VALUE!"}}]
[{"$f":"REPLACE(LOWER((ТРАНСЛИТ(Таблица1[[#This Row],[Ключ]]))),1,1,LEFT(PROPER((ТРАНСЛИТ(Таблица1[[#This Row],[Ключ]])))))","v":{"$error":"#VALUE!"}},{"$f":"CONCATENATE((repl(Таблица1[[#This Row],[Фраза]],T$1)),\".\")","v":{"$error":"#VALUE!"}},null,null,null,null,null,null,null,null,null,null,null,null,{"$f":"CONCATENATE(\"[\",(repl(Таблица1[[#This Row],[Фраза]],Adwords!U$1)),\"]\")","v":{"$error":"#VALUE!"}}]
[{"$f":"REPLACE(LOWER((ТРАНСЛИТ(Таблица1[[#This Row],[Ключ]]))),1,1,LEFT(PROPER((ТРАНСЛИТ(Таблица1[[#This Row],[Ключ]])))))","v":{"$error":"#VALUE!"}},{"$f":"CONCATENATE((repl(Таблица1[[#This Row],[Фраза]],T$1)),\".\")","v":{"$error":"#VALUE!"}},null,null,null,null,null,null,null,null,null,null,null,null,{"$f":"CONCATENATE(\"[\",(repl(Таблица1[[#This Row],[Фраза]],Adwords!U$1)),\"]\")","v":{"$error":"#VALUE!"}}]
[{"$f":"REPLACE(LOWER((ТРАНСЛИТ(Таблица1[[#This Row],[Ключ]]))),1,1,LEFT(PROPER((ТРАНСЛИТ(Таблица1[[#This Row],[Ключ]])))))","v":{"$error":"#VALUE!"}},{"$f":"CONCATENATE((repl(Таблица1[[#This Row],[Фраза]],T$1)),\".\")","v":{"$error":"#VALUE!"}},null,null,null,null,null,null,null,null,null,null,null,null,{"$f":"CONCATENATE(\"[\",(repl(Таблица1[[#This Row],[Фраза]],Adwords!U$1)),\"]\")","v":{"$error":"#VALUE!"}}]
[{"$f":"REPLACE(LOWER((ТРАНСЛИТ(Таблица1[[#This Row],[Ключ]]))),1,1,LEFT(PROPER((ТРАНСЛИТ(Таблица1[[#This Row],[Ключ]])))))","v":{"$error":"#VALUE!"}},{"$f":"CONCATENATE((repl(Таблица1[[#This Row],[Фраза]],T$1)),\".\")","v":{"$error":"#VALUE!"}},null,null,null,null,null,null,null,null,null,null,null,null,{"$f":"CONCATENATE(\"[\",(repl(Таблица1[[#This Row],[Фраза]],Adwords!U$1)),\"]\")","v":{"$error":"#VALUE!"}}]
[{"$f":"REPLACE(LOWER((ТРАНСЛИТ(Таблица1[[#This Row],[Ключ]]))),1,1,LEFT(PROPER((ТРАНСЛИТ(Таблица1[[#This Row],[Ключ]])))))","v":{"$error":"#VALUE!"}},{"$f":"CONCATENATE((repl(Таблица1[[#This Row],[Фраза]],T$1)),\".\")","v":{"$error":"#VALUE!"}},null,null,null,null,null,null,null,null,null,null,null,null,{"$f":"CONCATENATE(\"[\",(repl(Таблица1[[#This Row],[Фраза]],Adwords!U$1)),\"]\")","v":{"$error":"#VALUE!"}}]
[{"$f":"REPLACE(LOWER((ТРАНСЛИТ(Таблица1[[#This Row],[Ключ]]))),1,1,LEFT(PROPER((ТРАНСЛИТ(Таблица1[[#This Row],[Ключ]])))))","v":{"$error":"#VALUE!"}},{"$f":"CONCATENATE((repl(Таблица1[[#This Row],[Фраза]],T$1)),\".\")","v":{"$error":"#VALUE!"}},null,null,null,null,null,null,null,null,null,null,null,null,{"$f":"CONCATENATE(\"[\",(repl(Таблица1[[#This Row],[Фраза]],Adwords!U$1)),\"]\")","v":{"$error":"#VALUE!"}}]
[{"$f":"REPLACE(LOWER((ТРАНСЛИТ(Таблица1[[#This Row],[Ключ]]))),1,1,LEFT(PROPER((ТРАНСЛИТ(Таблица1[[#This Row],[Ключ]])))))","v":{"$error":"#VALUE!"}},{"$f":"CONCATENATE((repl(Таблица1[[#This Row],[Фраза]],T$1)),\".\")","v":{"$error":"#VALUE!"}},null,null,null,null,null,null,null,null,null,null,null,null,{"$f":"CONCATENATE(\"[\",(repl(Таблица1[[#This Row],[Фраза]],Adwords!U$1)),\"]\")","v":{"$error":"#VALUE!"}}]
[{"$f":"REPLACE(LOWER((ТРАНСЛИТ(Таблица1[[#This Row],[Ключ]]))),1,1,LEFT(PROPER((ТРАНСЛИТ(Таблица1[[#This Row],[Ключ]])))))","v":{"$error":"#VALUE!"}},{"$f":"CONCATENATE((repl(Таблица1[[#This Row],[Фраза]],T$1)),\".\")","v":{"$error":"#VALUE!"}},null,null,null,null,null,null,null,null,null,null,null,null,{"$f":"CONCATENATE(\"[\",(repl(Таблица1[[#This Row],[Фраза]],Adwords!U$1)),\"]\")","v":{"$error":"#VALUE!"}}]
[{"$f":"REPLACE(LOWER((ТРАНСЛИТ(Таблица1[[#This Row],[Ключ]]))),1,1,LEFT(PROPER((ТРАНСЛИТ(Таблица1[[#This Row],[Ключ]])))))","v":{"$error":"#VALUE!"}},{"$f":"CONCATENATE((repl(Таблица1[[#This Row],[Фраза]],T$1)),\".\")","v":{"$error":"#VALUE!"}},null,null,null,null,null,null,null,null,null,null,null,null,{"$f":"CONCATENATE(\"[\",(repl(Таблица1[[#This Row],[Фраза]],Adwords!U$1)),\"]\")","v":{"$error":"#VALUE!"}}]
[{"$f":"REPLACE(LOWER((ТРАНСЛИТ(Таблица1[[#This Row],[Ключ]]))),1,1,LEFT(PROPER((ТРАНСЛИТ(Таблица1[[#This Row],[Ключ]])))))","v":{"$error":"#VALUE!"}},{"$f":"CONCATENATE((repl(Таблица1[[#This Row],[Фраза]],T$1)),\".\")","v":{"$error":"#VALUE!"}},null,null,null,null,null,null,null,null,null,null,null,null,{"$f":"CONCATENATE(\"[\",(repl(Таблица1[[#This Row],[Фраза]],Adwords!U$1)),\"]\")","v":{"$error":"#VALUE!"}}]
[{"$f":"REPLACE(LOWER((ТРАНСЛИТ(Таблица1[[#This Row],[Ключ]]))),1,1,LEFT(PROPER((ТРАНСЛИТ(Таблица1[[#This Row],[Ключ]])))))","v":{"$error":"#VALUE!"}},{"$f":"CONCATENATE((repl(Таблица1[[#This Row],[Фраза]],T$1)),\".\")","v":{"$error":"#VALUE!"}},null,null,null,null,null,null,null,null,null,null,null,null,{"$f":"CONCATENATE(\"[\",(repl(Таблица1[[#This Row],[Фраза]],Adwords!U$1)),\"]\")","v":{"$error":"#VALUE!"}}]
[{"$f":"REPLACE(LOWER((ТРАНСЛИТ(Таблица1[[#This Row],[Ключ]]))),1,1,LEFT(PROPER((ТРАНСЛИТ(Таблица1[[#This Row],[Ключ]])))))","v":{"$error":"#VALUE!"}},{"$f":"CONCATENATE((repl(Таблица1[[#This Row],[Фраза]],T$1)),\".\")","v":{"$error":"#VALUE!"}},null,null,null,null,null,null,null,null,null,null,null,null,{"$f":"CONCATENATE(\"[\",(repl(Таблица1[[#This Row],[Фраза]],Adwords!U$1)),\"]\")","v":{"$error":"#VALUE!"}}]
[{"$f":"REPLACE(LOWER((ТРАНСЛИТ(Таблица1[[#This Row],[Ключ]]))),1,1,LEFT(PROPER((ТРАНСЛИТ(Таблица1[[#This Row],[Ключ]])))))","v":{"$error":"#VALUE!"}},{"$f":"CONCATENATE((repl(Таблица1[[#This Row],[Фраза]],T$1)),\".\")","v":{"$error":"#VALUE!"}},null,null,null,null,null,null,null,null,null,null,null,null,{"$f":"CONCATENATE(\"[\",(repl(Таблица1[[#This Row],[Фраза]],Adwords!U$1)),\"]\")","v":{"$error":"#VALUE!"}}]
[{"$f":"REPLACE(LOWER((ТРАНСЛИТ(Таблица1[[#This Row],[Ключ]]))),1,1,LEFT(PROPER((ТРАНСЛИТ(Таблица1[[#This Row],[Ключ]])))))","v":{"$error":"#VALUE!"}},{"$f":"CONCATENATE((repl(Таблица1[[#This Row],[Фраза]],T$1)),\".\")","v":{"$error":"#VALUE!"}},null,null,null,null,null,null,null,null,null,null,null,null,{"$f":"CONCATENATE(\"[\",(repl(Таблица1[[#This Row],[Фраза]],Adwords!U$1)),\"]\")","v":{"$error":"#VALUE!"}}]
[{"$f":"REPLACE(LOWER((ТРАНСЛИТ(Таблица1[[#This Row],[Ключ]]))),1,1,LEFT(PROPER((ТРАНСЛИТ(Таблица1[[#This Row],[Ключ]])))))","v":{"$error":"#VALUE!"}},{"$f":"CONCATENATE((repl(Таблица1[[#This Row],[Фраза]],T$1)),\".\")","v":{"$error":"#VALUE!"}},null,null,null,null,null,null,null,null,null,null,null,null,{"$f":"CONCATENATE(\"[\",(repl(Таблица1[[#This Row],[Фраза]],Adwords!U$1)),\"]\")","v":{"$error":"#VALUE!"}}]
[{"$f":"REPLACE(LOWER((ТРАНСЛИТ(Таблица1[[#This Row],[Ключ]]))),1,1,LEFT(PROPER((ТРАНСЛИТ(Таблица1[[#This Row],[Ключ]])))))","v":{"$error":"#VALUE!"}},{"$f":"CONCATENATE((repl(Таблица1[[#This Row],[Фраза]],T$1)),\".\")","v":{"$error":"#VALUE!"}},null,null,null,null,null,null,null,null,null,null,null,null,{"$f":"CONCATENATE(\"[\",(repl(Таблица1[[#This Row],[Фраза]],Adwords!U$1)),\"]\")","v":{"$error":"#VALUE!"}}]
[{"$f":"REPLACE(LOWER((ТРАНСЛИТ(Таблица1[[#This Row],[Ключ]]))),1,1,LEFT(PROPER((ТРАНСЛИТ(Таблица1[[#This Row],[Ключ]])))))","v":{"$error":"#VALUE!"}},{"$f":"CONCATENATE((repl(Таблица1[[#This Row],[Фраза]],T$1)),\".\")","v":{"$error":"#VALUE!"}},null,null,null,null,null,null,null,null,null,null,null,null,{"$f":"CONCATENATE(\"[\",(repl(Таблица1[[#This Row],[Фраза]],Adwords!U$1)),\"]\")","v":{"$error":"#VALUE!"}}]
[{"$f":"REPLACE(LOWER((ТРАНСЛИТ(Таблица1[[#This Row],[Ключ]]))),1,1,LEFT(PROPER((ТРАНСЛИТ(Таблица1[[#This Row],[Ключ]])))))","v":{"$error":"#VALUE!"}},{"$f":"CONCATENATE((repl(Таблица1[[#This Row],[Фраза]],T$1)),\".\")","v":{"$error":"#VALUE!"}},null,null,null,null,null,null,null,null,null,null,null,null,{"$f":"CONCATENATE(\"[\",(repl(Таблица1[[#This Row],[Фраза]],Adwords!U$1)),\"]\")","v":{"$error":"#VALUE!"}}]
[{"$f":"REPLACE(LOWER((ТРАНСЛИТ(Таблица1[[#This Row],[Ключ]]))),1,1,LEFT(PROPER((ТРАНСЛИТ(Таблица1[[#This Row],[Ключ]])))))","v":{"$error":"#VALUE!"}},{"$f":"CONCATENATE((repl(Таблица1[[#This Row],[Фраза]],T$1)),\".\")","v":{"$error":"#VALUE!"}},null,null,null,null,null,null,null,null,null,null,null,null,{"$f":"CONCATENATE(\"[\",(repl(Таблица1[[#This Row],[Фраза]],Adwords!U$1)),\"]\")","v":{"$error":"#VALUE!"}}]
[{"$f":"REPLACE(LOWER((ТРАНСЛИТ(Таблица1[[#This Row],[Ключ]]))),1,1,LEFT(PROPER((ТРАНСЛИТ(Таблица1[[#This Row],[Ключ]])))))","v":{"$error":"#VALUE!"}},{"$f":"CONCATENATE((repl(Таблица1[[#This Row],[Фраза]],T$1)),\".\")","v":{"$error":"#VALUE!"}},null,null,null,null,null,null,null,null,null,null,null,null,{"$f":"CONCATENATE(\"[\",(repl(Таблица1[[#This Row],[Фраза]],Adwords!U$1)),\"]\")","v":{"$error":"#VALUE!"}}]
[{"$f":"REPLACE(LOWER((ТРАНСЛИТ(Таблица1[[#This Row],[Ключ]]))),1,1,LEFT(PROPER((ТРАНСЛИТ(Таблица1[[#This Row],[Ключ]])))))","v":{"$error":"#VALUE!"}},{"$f":"CONCATENATE((repl(Таблица1[[#This Row],[Фраза]],T$1)),\".\")","v":{"$error":"#VALUE!"}},null,null,null,null,null,null,null,null,null,null,null,null,{"$f":"CONCATENATE(\"[\",(repl(Таблица1[[#This Row],[Фраза]],Adwords!U$1)),\"]\")","v":{"$error":"#VALUE!"}}]
[{"$f":"REPLACE(LOWER((ТРАНСЛИТ(Таблица1[[#This Row],[Ключ]]))),1,1,LEFT(PROPER((ТРАНСЛИТ(Таблица1[[#This Row],[Ключ]])))))","v":{"$error":"#VALUE!"}},{"$f":"CONCATENATE((repl(Таблица1[[#This Row],[Фраза]],T$1)),\".\")","v":{"$error":"#VALUE!"}},null,null,null,null,null,null,null,null,null,null,null,null,{"$f":"CONCATENATE(\"[\",(repl(Таблица1[[#This Row],[Фраза]],Adwords!U$1)),\"]\")","v":{"$error":"#VALUE!"}}]
[{"$f":"REPLACE(LOWER((ТРАНСЛИТ(Таблица1[[#This Row],[Ключ]]))),1,1,LEFT(PROPER((ТРАНСЛИТ(Таблица1[[#This Row],[Ключ]])))))","v":{"$error":"#VALUE!"}},{"$f":"CONCATENATE((repl(Таблица1[[#This Row],[Фраза]],T$1)),\".\")","v":{"$error":"#VALUE!"}},null,null,null,null,null,null,null,null,null,null,null,null,{"$f":"CONCATENATE(\"[\",(repl(Таблица1[[#This Row],[Фраза]],Adwords!U$1)),\"]\")","v":{"$error":"#VALUE!"}}]
[{"$f":"REPLACE(LOWER((ТРАНСЛИТ(Таблица1[[#This Row],[Ключ]]))),1,1,LEFT(PROPER((ТРАНСЛИТ(Таблица1[[#This Row],[Ключ]])))))","v":{"$error":"#VALUE!"}},{"$f":"CONCATENATE((repl(Таблица1[[#This Row],[Фраза]],T$1)),\".\")","v":{"$error":"#VALUE!"}},null,null,null,null,null,null,null,null,null,null,null,null,{"$f":"CONCATENATE(\"[\",(repl(Таблица1[[#This Row],[Фраза]],Adwords!U$1)),\"]\")","v":{"$error":"#VALUE!"}}]
[{"$f":"REPLACE(LOWER((ТРАНСЛИТ(Таблица1[[#This Row],[Ключ]]))),1,1,LEFT(PROPER((ТРАНСЛИТ(Таблица1[[#This Row],[Ключ]])))))","v":{"$error":"#VALUE!"}},{"$f":"CONCATENATE((repl(Таблица1[[#This Row],[Фраза]],T$1)),\".\")","v":{"$error":"#VALUE!"}},null,null,null,null,null,null,null,null,null,null,null,null,{"$f":"CONCATENATE(\"[\",(repl(Таблица1[[#This Row],[Фраза]],Adwords!U$1)),\"]\")","v":{"$error":"#VALUE!"}}]
[{"$f":"REPLACE(LOWER((ТРАНСЛИТ(Таблица1[[#This Row],[Ключ]]))),1,1,LEFT(PROPER((ТРАНСЛИТ(Таблица1[[#This Row],[Ключ]])))))","v":{"$error":"#VALUE!"}},{"$f":"CONCATENATE((repl(Таблица1[[#This Row],[Фраза]],T$1)),\".\")","v":{"$error":"#VALUE!"}},null,null,null,null,null,null,null,null,null,null,null,null,{"$f":"CONCATENATE(\"[\",(repl(Таблица1[[#This Row],[Фраза]],Adwords!U$1)),\"]\")","v":{"$error":"#VALUE!"}}]
[{"$f":"REPLACE(LOWER((ТРАНСЛИТ(Таблица1[[#This Row],[Ключ]]))),1,1,LEFT(PROPER((ТРАНСЛИТ(Таблица1[[#This Row],[Ключ]])))))","v":{"$error":"#VALUE!"}},{"$f":"CONCATENATE((repl(Таблица1[[#This Row],[Фраза]],T$1)),\".\")","v":{"$error":"#VALUE!"}},null,null,null,null,null,null,null,null,null,null,null,null,{"$f":"CONCATENATE(\"[\",(repl(Таблица1[[#This Row],[Фраза]],Adwords!U$1)),\"]\")","v":{"$error":"#VALUE!"}}]
[{"$f":"REPLACE(LOWER((ТРАНСЛИТ(Таблица1[[#This Row],[Ключ]]))),1,1,LEFT(PROPER((ТРАНСЛИТ(Таблица1[[#This Row],[Ключ]])))))","v":{"$error":"#VALUE!"}},{"$f":"CONCATENATE((repl(Таблица1[[#This Row],[Фраза]],T$1)),\".\")","v":{"$error":"#VALUE!"}},null,null,null,null,null,null,null,null,null,null,null,null,{"$f":"CONCATENATE(\"[\",(repl(Таблица1[[#This Row],[Фраза]],Adwords!U$1)),\"]\")","v":{"$error":"#VALUE!"}}]
[{"$f":"REPLACE(LOWER((ТРАНСЛИТ(Таблица1[[#This Row],[Ключ]]))),1,1,LEFT(PROPER((ТРАНСЛИТ(Таблица1[[#This Row],[Ключ]])))))","v":{"$error":"#VALUE!"}},{"$f":"CONCATENATE((repl(Таблица1[[#This Row],[Фраза]],T$1)),\".\")","v":{"$error":"#VALUE!"}},null,null,null,null,null,null,null,null,null,null,null,null,{"$f":"CONCATENATE(\"[\",(repl(Таблица1[[#This Row],[Фраза]],Adwords!U$1)),\"]\")","v":{"$error":"#VALUE!"}}]
[{"$f":"REPLACE(LOWER((ТРАНСЛИТ(Таблица1[[#This Row],[Ключ]]))),1,1,LEFT(PROPER((ТРАНСЛИТ(Таблица1[[#This Row],[Ключ]])))))","v":{"$error":"#VALUE!"}},{"$f":"CONCATENATE((repl(Таблица1[[#This Row],[Фраза]],T$1)),\".\")","v":{"$error":"#VALUE!"}},null,null,null,null,null,null,null,null,null,null,null,null,{"$f":"CONCATENATE(\"[\",(repl(Таблица1[[#This Row],[Фраза]],Adwords!U$1)),\"]\")","v":{"$error":"#VALUE!"}}]
[{"$f":"REPLACE(LOWER((ТРАНСЛИТ(Таблица1[[#This Row],[Ключ]]))),1,1,LEFT(PROPER((ТРАНСЛИТ(Таблица1[[#This Row],[Ключ]])))))","v":{"$error":"#VALUE!"}},{"$f":"CONCATENATE((repl(Таблица1[[#This Row],[Фраза]],T$1)),\".\")","v":{"$error":"#VALUE!"}},null,null,null,null,null,null,null,null,null,null,null,null,{"$f":"CONCATENATE(\"[\",(repl(Таблица1[[#This Row],[Фраза]],Adwords!U$1)),\"]\")","v":{"$error":"#VALUE!"}}]
[{"$f":"REPLACE(LOWER((ТРАНСЛИТ(Таблица1[[#This Row],[Ключ]]))),1,1,LEFT(PROPER((ТРАНСЛИТ(Таблица1[[#This Row],[Ключ]])))))","v":{"$error":"#VALUE!"}},{"$f":"CONCATENATE((repl(Таблица1[[#This Row],[Фраза]],T$1)),\".\")","v":{"$error":"#VALUE!"}},null,null,null,null,null,null,null,null,null,null,null,null,{"$f":"CONCATENATE(\"[\",(repl(Таблица1[[#This Row],[Фраза]],Adwords!U$1)),\"]\")","v":{"$error":"#VALUE!"}}]
[{"$f":"REPLACE(LOWER((ТРАНСЛИТ(Таблица1[[#This Row],[Ключ]]))),1,1,LEFT(PROPER((ТРАНСЛИТ(Таблица1[[#This Row],[Ключ]])))))","v":{"$error":"#VALUE!"}},{"$f":"CONCATENATE((repl(Таблица1[[#This Row],[Фраза]],T$1)),\".\")","v":{"$error":"#VALUE!"}},null,null,null,null,null,null,null,null,null,null,null,null,{"$f":"CONCATENATE(\"[\",(repl(Таблица1[[#This Row],[Фраза]],Adwords!U$1)),\"]\")","v":{"$error":"#VALUE!"}}]
[{"$f":"REPLACE(LOWER((ТРАНСЛИТ(Таблица1[[#This Row],[Ключ]]))),1,1,LEFT(PROPER((ТРАНСЛИТ(Таблица1[[#This Row],[Ключ]])))))","v":{"$error":"#VALUE!"}},{"$f":"CONCATENATE((repl(Таблица1[[#This Row],[Фраза]],T$1)),\".\")","v":{"$error":"#VALUE!"}},null,null,null,null,null,null,null,null,null,null,null,null,{"$f":"CONCATENATE(\"[\",(repl(Таблица1[[#This Row],[Фраза]],Adwords!U$1)),\"]\")","v":{"$error":"#VALUE!"}}]
[{"$f":"REPLACE(LOWER((ТРАНСЛИТ(Таблица1[[#This Row],[Ключ]]))),1,1,LEFT(PROPER((ТРАНСЛИТ(Таблица1[[#This Row],[Ключ]])))))","v":{"$error":"#VALUE!"}},{"$f":"CONCATENATE((repl(Таблица1[[#This Row],[Фраза]],T$1)),\".\")","v":{"$error":"#VALUE!"}},null,null,null,null,null,null,null,null,null,null,null,null,{"$f":"CONCATENATE(\"[\",(repl(Таблица1[[#This Row],[Фраза]],Adwords!U$1)),\"]\")","v":{"$error":"#VALUE!"}}]
[{"$f":"REPLACE(LOWER((ТРАНСЛИТ(Таблица1[[#This Row],[Ключ]]))),1,1,LEFT(PROPER((ТРАНСЛИТ(Таблица1[[#This Row],[Ключ]])))))","v":{"$error":"#VALUE!"}},{"$f":"CONCATENATE((repl(Таблица1[[#This Row],[Фраза]],T$1)),\".\")","v":{"$error":"#VALUE!"}},null,null,null,null,null,null,null,null,null,null,null,null,{"$f":"CONCATENATE(\"[\",(repl(Таблица1[[#This Row],[Фраза]],Adwords!U$1)),\"]\")","v":{"$error":"#VALUE!"}}]
[{"$f":"REPLACE(LOWER((ТРАНСЛИТ(Таблица1[[#This Row],[Ключ]]))),1,1,LEFT(PROPER((ТРАНСЛИТ(Таблица1[[#This Row],[Ключ]])))))","v":{"$error":"#VALUE!"}},{"$f":"CONCATENATE((repl(Таблица1[[#This Row],[Фраза]],T$1)),\".\")","v":{"$error":"#VALUE!"}},null,null,null,null,null,null,null,null,null,null,null,null,{"$f":"CONCATENATE(\"[\",(repl(Таблица1[[#This Row],[Фраза]],Adwords!U$1)),\"]\")","v":{"$error":"#VALUE!"}}]
[{"$f":"REPLACE(LOWER((ТРАНСЛИТ(Таблица1[[#This Row],[Ключ]]))),1,1,LEFT(PROPER((ТРАНСЛИТ(Таблица1[[#This Row],[Ключ]])))))","v":{"$error":"#VALUE!"}},{"$f":"CONCATENATE((repl(Таблица1[[#This Row],[Фраза]],T$1)),\".\")","v":{"$error":"#VALUE!"}},null,null,null,null,null,null,null,null,null,null,null,null,{"$f":"CONCATENATE(\"[\",(repl(Таблица1[[#This Row],[Фраза]],Adwords!U$1)),\"]\")","v":{"$error":"#VALUE!"}}]
[{"$f":"REPLACE(LOWER((ТРАНСЛИТ(Таблица1[[#This Row],[Ключ]]))),1,1,LEFT(PROPER((ТРАНСЛИТ(Таблица1[[#This Row],[Ключ]])))))","v":{"$error":"#VALUE!"}},{"$f":"CONCATENATE((repl(Таблица1[[#This Row],[Фраза]],T$1)),\".\")","v":{"$error":"#VALUE!"}},null,null,null,null,null,null,null,null,null,null,null,null,{"$f":"CONCATENATE(\"[\",(repl(Таблица1[[#This Row],[Фраза]],Adwords!U$1)),\"]\")","v":{"$error":"#VALUE!"}}]
[{"$f":"REPLACE(LOWER((ТРАНСЛИТ(Таблица1[[#This Row],[Ключ]]))),1,1,LEFT(PROPER((ТРАНСЛИТ(Таблица1[[#This Row],[Ключ]])))))","v":{"$error":"#VALUE!"}},{"$f":"CONCATENATE((repl(Таблица1[[#This Row],[Фраза]],T$1)),\".\")","v":{"$error":"#VALUE!"}},null,null,null,null,null,null,null,null,null,null,null,null,{"$f":"CONCATENATE(\"[\",(repl(Таблица1[[#This Row],[Фраза]],Adwords!U$1)),\"]\")","v":{"$error":"#VALUE!"}}]
[{"$f":"REPLACE(LOWER((ТРАНСЛИТ(Таблица1[[#This Row],[Ключ]]))),1,1,LEFT(PROPER((ТРАНСЛИТ(Таблица1[[#This Row],[Ключ]])))))","v":{"$error":"#VALUE!"}},{"$f":"CONCATENATE((repl(Таблица1[[#This Row],[Фраза]],T$1)),\".\")","v":{"$error":"#VALUE!"}},null,null,null,null,null,null,null,null,null,null,null,null,{"$f":"CONCATENATE(\"[\",(repl(Таблица1[[#This Row],[Фраза]],Adwords!U$1)),\"]\")","v":{"$error":"#VALUE!"}}]
[{"$f":"REPLACE(LOWER((ТРАНСЛИТ(Таблица1[[#This Row],[Ключ]]))),1,1,LEFT(PROPER((ТРАНСЛИТ(Таблица1[[#This Row],[Ключ]])))))","v":{"$error":"#VALUE!"}},{"$f":"CONCATENATE((repl(Таблица1[[#This Row],[Фраза]],T$1)),\".\")","v":{"$error":"#VALUE!"}},null,null,null,null,null,null,null,null,null,null,null,null,{"$f":"CONCATENATE(\"[\",(repl(Таблица1[[#This Row],[Фраза]],Adwords!U$1)),\"]\")","v":{"$error":"#VALUE!"}}]
[{"$f":"REPLACE(LOWER((ТРАНСЛИТ(Таблица1[[#This Row],[Ключ]]))),1,1,LEFT(PROPER((ТРАНСЛИТ(Таблица1[[#This Row],[Ключ]])))))","v":{"$error":"#VALUE!"}},{"$f":"CONCATENATE((repl(Таблица1[[#This Row],[Фраза]],T$1)),\".\")","v":{"$error":"#VALUE!"}},null,null,null,null,null,null,null,null,null,null,null,null,{"$f":"CONCATENATE(\"[\",(repl(Таблица1[[#This Row],[Фраза]],Adwords!U$1)),\"]\")","v":{"$error":"#VALUE!"}}]
[{"$f":"REPLACE(LOWER((ТРАНСЛИТ(Таблица1[[#This Row],[Ключ]]))),1,1,LEFT(PROPER((ТРАНСЛИТ(Таблица1[[#This Row],[Ключ]])))))","v":{"$error":"#VALUE!"}},{"$f":"CONCATENATE((repl(Таблица1[[#This Row],[Фраза]],T$1)),\".\")","v":{"$error":"#VALUE!"}},null,null,null,null,null,null,null,null,null,null,null,null,{"$f":"CONCATENATE(\"[\",(repl(Таблица1[[#This Row],[Фраза]],Adwords!U$1)),\"]\")","v":{"$error":"#VALUE!"}}]
[{"$f":"REPLACE(LOWER((ТРАНСЛИТ(Таблица1[[#This Row],[Ключ]]))),1,1,LEFT(PROPER((ТРАНСЛИТ(Таблица1[[#This Row],[Ключ]])))))","v":{"$error":"#VALUE!"}},{"$f":"CONCATENATE((repl(Таблица1[[#This Row],[Фраза]],T$1)),\".\")","v":{"$error":"#VALUE!"}},null,null,null,null,null,null,null,null,null,null,null,null,{"$f":"CONCATENATE(\"[\",(repl(Таблица1[[#This Row],[Фраза]],Adwords!U$1)),\"]\")","v":{"$error":"#VALUE!"}}]
[{"$f":"REPLACE(LOWER((ТРАНСЛИТ(Таблица1[[#This Row],[Ключ]]))),1,1,LEFT(PROPER((ТРАНСЛИТ(Таблица1[[#This Row],[Ключ]])))))","v":{"$error":"#VALUE!"}},{"$f":"CONCATENATE((repl(Таблица1[[#This Row],[Фраза]],T$1)),\".\")","v":{"$error":"#VALUE!"}},null,null,null,null,null,null,null,null,null,null,null,null,{"$f":"CONCATENATE(\"[\",(repl(Таблица1[[#This Row],[Фраза]],Adwords!U$1)),\"]\")","v":{"$error":"#VALUE!"}}]
[{"$f":"REPLACE(LOWER((ТРАНСЛИТ(Таблица1[[#This Row],[Ключ]]))),1,1,LEFT(PROPER((ТРАНСЛИТ(Таблица1[[#This Row],[Ключ]])))))","v":{"$error":"#VALUE!"}},{"$f":"CONCATENATE((repl(Таблица1[[#This Row],[Фраза]],T$1)),\".\")","v":{"$error":"#VALUE!"}},null,null,null,null,null,null,null,null,null,null,null,null,{"$f":"CONCATENATE(\"[\",(repl(Таблица1[[#This Row],[Фраза]],Adwords!U$1)),\"]\")","v":{"$error":"#VALUE!"}}]
[{"$f":"REPLACE(LOWER((ТРАНСЛИТ(Таблица1[[#This Row],[Ключ]]))),1,1,LEFT(PROPER((ТРАНСЛИТ(Таблица1[[#This Row],[Ключ]])))))","v":{"$error":"#VALUE!"}},{"$f":"CONCATENATE((repl(Таблица1[[#This Row],[Фраза]],T$1)),\".\")","v":{"$error":"#VALUE!"}},null,null,null,null,null,null,null,null,null,null,null,null,{"$f":"CONCATENATE(\"[\",(repl(Таблица1[[#This Row],[Фраза]],Adwords!U$1)),\"]\")","v":{"$error":"#VALUE!"}}]
[{"$f":"REPLACE(LOWER((ТРАНСЛИТ(Таблица1[[#This Row],[Ключ]]))),1,1,LEFT(PROPER((ТРАНСЛИТ(Таблица1[[#This Row],[Ключ]])))))","v":{"$error":"#VALUE!"}},{"$f":"CONCATENATE((repl(Таблица1[[#This Row],[Фраза]],T$1)),\".\")","v":{"$error":"#VALUE!"}},null,null,null,null,null,null,null,null,null,null,null,null,{"$f":"CONCATENATE(\"[\",(repl(Таблица1[[#This Row],[Фраза]],Adwords!U$1)),\"]\")","v":{"$error":"#VALUE!"}}]
[{"$f":"REPLACE(LOWER((ТРАНСЛИТ(Таблица1[[#This Row],[Ключ]]))),1,1,LEFT(PROPER((ТРАНСЛИТ(Таблица1[[#This Row],[Ключ]])))))","v":{"$error":"#VALUE!"}},{"$f":"CONCATENATE((repl(Таблица1[[#This Row],[Фраза]],T$1)),\".\")","v":{"$error":"#VALUE!"}},null,null,null,null,null,null,null,null,null,null,null,null,{"$f":"CONCATENATE(\"[\",(repl(Таблица1[[#This Row],[Фраза]],Adwords!U$1)),\"]\")","v":{"$error":"#VALUE!"}}]
[{"$f":"REPLACE(LOWER((ТРАНСЛИТ(Таблица1[[#This Row],[Ключ]]))),1,1,LEFT(PROPER((ТРАНСЛИТ(Таблица1[[#This Row],[Ключ]])))))","v":{"$error":"#VALUE!"}},{"$f":"CONCATENATE((repl(Таблица1[[#This Row],[Фраза]],T$1)),\".\")","v":{"$error":"#VALUE!"}},null,null,null,null,null,null,null,null,null,null,null,null,{"$f":"CONCATENATE(\"[\",(repl(Таблица1[[#This Row],[Фраза]],Adwords!U$1)),\"]\")","v":{"$error":"#VALUE!"}}]
[{"$f":"REPLACE(LOWER((ТРАНСЛИТ(Таблица1[[#This Row],[Ключ]]))),1,1,LEFT(PROPER((ТРАНСЛИТ(Таблица1[[#This Row],[Ключ]])))))","v":{"$error":"#VALUE!"}},{"$f":"CONCATENATE((repl(Таблица1[[#This Row],[Фраза]],T$1)),\".\")","v":{"$error":"#VALUE!"}},null,null,null,null,null,null,null,null,null,null,null,null,{"$f":"CONCATENATE(\"[\",(repl(Таблица1[[#This Row],[Фраза]],Adwords!U$1)),\"]\")","v":{"$error":"#VALUE!"}}]
[{"$f":"REPLACE(LOWER((ТРАНСЛИТ(Таблица1[[#This Row],[Ключ]]))),1,1,LEFT(PROPER((ТРАНСЛИТ(Таблица1[[#This Row],[Ключ]])))))","v":{"$error":"#VALUE!"}},{"$f":"CONCATENATE((repl(Таблица1[[#This Row],[Фраза]],T$1)),\".\")","v":{"$error":"#VALUE!"}},null,null,null,null,null,null,null,null,null,null,null,null,{"$f":"CONCATENATE(\"[\",(repl(Таблица1[[#This Row],[Фраза]],Adwords!U$1)),\"]\")","v":{"$error":"#VALUE!"}}]
[{"$f":"REPLACE(LOWER((ТРАНСЛИТ(Таблица1[[#This Row],[Ключ]]))),1,1,LEFT(PROPER((ТРАНСЛИТ(Таблица1[[#This Row],[Ключ]])))))","v":{"$error":"#VALUE!"}},{"$f":"CONCATENATE((repl(Таблица1[[#This Row],[Фраза]],T$1)),\".\")","v":{"$error":"#VALUE!"}},null,null,null,null,null,null,null,null,null,null,null,null,{"$f":"CONCATENATE(\"[\",(repl(Таблица1[[#This Row],[Фраза]],Adwords!U$1)),\"]\")","v":{"$error":"#VALUE!"}}]
[{"$f":"REPLACE(LOWER((ТРАНСЛИТ(Таблица1[[#This Row],[Ключ]]))),1,1,LEFT(PROPER((ТРАНСЛИТ(Таблица1[[#This Row],[Ключ]])))))","v":{"$error":"#VALUE!"}},{"$f":"CONCATENATE((repl(Таблица1[[#This Row],[Фраза]],T$1)),\".\")","v":{"$error":"#VALUE!"}},null,null,null,null,null,null,null,null,null,null,null,null,{"$f":"CONCATENATE(\"[\",(repl(Таблица1[[#This Row],[Фраза]],Adwords!U$1)),\"]\")","v":{"$error":"#VALUE!"}}]
[{"$f":"REPLACE(LOWER((ТРАНСЛИТ(Таблица1[[#This Row],[Ключ]]))),1,1,LEFT(PROPER((ТРАНСЛИТ(Таблица1[[#This Row],[Ключ]])))))","v":{"$error":"#VALUE!"}},{"$f":"CONCATENATE((repl(Таблица1[[#This Row],[Фраза]],T$1)),\".\")","v":{"$error":"#VALUE!"}},null,null,null,null,null,null,null,null,null,null,null,null,{"$f":"CONCATENATE(\"[\",(repl(Таблица1[[#This Row],[Фраза]],Adwords!U$1)),\"]\")","v":{"$error":"#VALUE!"}}]
[{"$f":"REPLACE(LOWER((ТРАНСЛИТ(Таблица1[[#This Row],[Ключ]]))),1,1,LEFT(PROPER((ТРАНСЛИТ(Таблица1[[#This Row],[Ключ]])))))","v":{"$error":"#VALUE!"}},{"$f":"CONCATENATE((repl(Таблица1[[#This Row],[Фраза]],T$1)),\".\")","v":{"$error":"#VALUE!"}},null,null,null,null,null,null,null,null,null,null,null,null,{"$f":"CONCATENATE(\"[\",(repl(Таблица1[[#This Row],[Фраза]],Adwords!U$1)),\"]\")","v":{"$error":"#VALUE!"}}]
[{"$f":"REPLACE(LOWER((ТРАНСЛИТ(Таблица1[[#This Row],[Ключ]]))),1,1,LEFT(PROPER((ТРАНСЛИТ(Таблица1[[#This Row],[Ключ]])))))","v":{"$error":"#VALUE!"}},{"$f":"CONCATENATE((repl(Таблица1[[#This Row],[Фраза]],T$1)),\".\")","v":{"$error":"#VALUE!"}},null,null,null,null,null,null,null,null,null,null,null,null,{"$f":"CONCATENATE(\"[\",(repl(Таблица1[[#This Row],[Фраза]],Adwords!U$1)),\"]\")","v":{"$error":"#VALUE!"}}]
[{"$f":"REPLACE(LOWER((ТРАНСЛИТ(Таблица1[[#This Row],[Ключ]]))),1,1,LEFT(PROPER((ТРАНСЛИТ(Таблица1[[#This Row],[Ключ]])))))","v":{"$error":"#VALUE!"}},{"$f":"CONCATENATE((repl(Таблица1[[#This Row],[Фраза]],T$1)),\".\")","v":{"$error":"#VALUE!"}},null,null,null,null,null,null,null,null,null,null,null,null,{"$f":"CONCATENATE(\"[\",(repl(Таблица1[[#This Row],[Фраза]],Adwords!U$1)),\"]\")","v":{"$error":"#VALUE!"}}]
[{"$f":"REPLACE(LOWER((ТРАНСЛИТ(Таблица1[[#This Row],[Ключ]]))),1,1,LEFT(PROPER((ТРАНСЛИТ(Таблица1[[#This Row],[Ключ]])))))","v":{"$error":"#VALUE!"}},{"$f":"CONCATENATE((repl(Таблица1[[#This Row],[Фраза]],T$1)),\".\")","v":{"$error":"#VALUE!"}},null,null,null,null,null,null,null,null,null,null,null,null,{"$f":"CONCATENATE(\"[\",(repl(Таблица1[[#This Row],[Фраза]],Adwords!U$1)),\"]\")","v":{"$error":"#VALUE!"}}]
[{"$f":"REPLACE(LOWER((ТРАНСЛИТ(Таблица1[[#This Row],[Ключ]]))),1,1,LEFT(PROPER((ТРАНСЛИТ(Таблица1[[#This Row],[Ключ]])))))","v":{"$error":"#VALUE!"}},{"$f":"CONCATENATE((repl(Таблица1[[#This Row],[Фраза]],T$1)),\".\")","v":{"$error":"#VALUE!"}},null,null,null,null,null,null,null,null,null,null,null,null,{"$f":"CONCATENATE(\"[\",(repl(Таблица1[[#This Row],[Фраза]],Adwords!U$1)),\"]\")","v":{"$error":"#VALUE!"}}]

{"sheet":"Замены","index":2,"n_rows":4,"n_cols":2,"rows_kept":4,"cut":false,"hidden":false,"merged":[]}
["С","На"]
["москв","Москв"]
["пермь","Пермь"]
["соколов","Соколов"]